Cogmind - Beta 13 X1 @@@ ROGUE MODE // 2024.03.31 @ 01:18:28 Player: Marlyn Result: Destroyed by as-97358 with Assembled F-torch Performance ------------- Evolutions (0) 0 Regions Visited (2) 400 Robots Destroyed (17) 85 Value Destroyed (483) 483 Prototype IDs (0) 0 Alien Tech Used (0) 0 Bonus (0) 0 TOTAL SCORE: 968 Bonus ------- None Cogmind --------- Core Integrity 0/250 Matter 300/300 Energy 99/100 System Corruption 0% Temperature Cool (20) Movement Core (50) Location -10/Mines Parts ------- > --- POWER (1) -------- (None) > --- PROPULSION (2) --- (None) > --- UTILITY (2) ------ (None) > --- WEAPON (2) ------- (None) > --- INVENTORY (5) ---- Ion Engine Light Nuclear Core Signal Interpreter Light Armor Plating Light Armor Plating Peak State ------------ > --- POWER ------------ Ion Engine > --- PROPULSION ------- Light Treads Light Treads > --- UTILITY ---------- Large Storage Unit Structural Scanner > --- WEAPON ----------- Assault Rifle Light Assault Rifle > --- INVENTORY -------- Ion Engine Aluminum Leg Aluminum Leg Wheel Wheel Small Storage Unit Weapon Shielding Light Armor Plating EM Pulse Gun Grenade Launcher [Rating: 8] Favorites ----------- Power Ion Engine Engine Ion Engine Propulsion Light Treads Treads Light Treads Leg Aluminum Leg Utility Large Storage Unit Device Structural Scanner Storage Large Storage Unit Protection Light Armor Plating Weapon Assault Rifle Energy Gun EM Pulse Gun Ballistic Gun Assault Rifle Launcher Grenade Launcher Build | -11 -10 -10 ------- Run | Jun Mat Min Slots Evolved . | . . . Power . | . . . Propulsion . | . . . Utility . | . . . Weapon . | . . . Parts Attached 19 | 3 15 1 Power . | . . . Engine . | . . . Core . | . . . Reactor . | . . . Propulsion 2 | 2 . . Treads 2 | 2 . . Leg . | . . . Wheel . | . . . Hover . | . . . Flight . | . . . Utility 12 | . 12 . Device 5 | . 5 . Storage 1 | . 1 . Processor . | . . . Hackware . | . . . Protection 6 | . 6 . Artifact . | . . . Weapon 5 | 1 3 1 Energy Gun . | . . . Energy Cannon . | . . . Ballistic Gun 3 | 1 1 1 Ballistic Cannon . | . . . Launcher 2 | . 2 . Special Weapon . | . . . Impact Weapon . | . . . Slashing Weapon . | . . . Piercing Weapon . | . . . Special Melee Weapon . | . . . Unidentified Prototypes . | . . . Parts Lost 4 | . . 4 Power . | . . . Propulsion 2 | . . 2 Utility 1 | . . 1 Weapon 1 | . . 1 Highest Loss Streak 4 | . . 4 To Critical Strikes . | . . . Average Slot Usage (%) 98 | . 98 95 Engine 13 | . 14 13 Treads 27 | . 28 26 Device 3 | . 3 . Storage 13 | . 14 13 Protection 9 | . 8 13 Ballistic Gun 26 | . 27 20 Launcher 1 | . . 6 Naked Turns 11 | . . 11 Heaviest Build 33 | 13 33 33 Greatest Support 40 | 40 40 40 Greatest Overweight (x) . | . . . Average Overweight (x) . | . . . Largest Inventory Capacity 15 | 8 15 15 Average Capacity 14 | 8 14 14 Most Carried 15 | 6 15 15 Average Carried 11 | 6 11 14 Final Capacity 15 | 8 15 5 Final Carried 15 | 6 15 5 Class Distribution -------------------- 100% | Mutant Dominant Class ---------------- Mutant | -10/Materials Mutant | -10/Mines Resources | -11 -10 -10 ----------- Run | Jun Mat Min Matter Collected 594 | 197 349 48 Remotely . | . . . Salvage Created 512 | . 451 61 Parts 26 | . 24 2 Haulers Intercepted . | . . . Recyclers Shooed 1 | . 1 . Parts Field Recycled . | . . . Retrieved Matter . | . . . Parts Self-Destructed . | . . . Prevented . | . . . Kills | -11 -10 -10 ------- Run | Jun Mat Min Combat Hostiles Destroyed 15 | . 13 2 Guns 11 | . 11 . AOE 4 | . 2 2 Classes Destroyed 4 | . 4 . Worker 1 | . 1 . Builder 1 | . 1 . Swarmer 3 | . 3 . Grunt 12 | . 10 2 Best Kill Streak 5 | . 5 2 Combat Bots Only 5 | . 5 2 Max Kills in Single Turn 2 | . 2 2 Gunslinging . | . . . Exploded 2 | . 2 2 Melee . | . . . Uniques/NPCs Destroyed . | . . . Combat | -11 -10 -10 -------- Run | Jun Mat Min Damage Taken 960 | . 458 502 Core 257 | . 102 155 Absorbed by Shields . | . . . Core Remaining (%) 100 | 100 . . Volleys Fired 49 | . 46 3 Largest 2 | . 2 2 Hottest 40 | . 40 40 Shots Fired 95 | . 91 4 Gun 92 | . 90 2 Cannon . | . . . Launcher 3 | . 1 2 Special . | . . . Kinetic 92 | . 90 2 Thermal . | . . . Explosive 3 | . 1 2 Electromagnetic . | . . . Robot Hit Streak 15 | . 15 1 Robot Miss Streak 2 | . 2 2 Penetration Max . | . . . Secondary Targets . | . . . Shots Hit Robots 63 | . 62 1 Core Hits 33 | . 26 7 Critical Kills 2 | . 2 . Critical Parts Destroyed 1 | . 1 . Critical Strikes 3 | . 3 . Destroy 3 | . 3 . Melee Attacks . | . . . Impact . | . . . Slashing . | . . . Piercing . | . . . Sneak Attacks . | . . . Combat Hostiles . | . . . Follow-up Attacks . | . . . Damage Inflicted 839 | . 728 111 Guns 629 | . 629 . Cannons . | . . . Explosions 195 | . 85 110 Melee . | . . . Ramming 15 | . 14 1 Kinetic 629 | . 629 . Thermal . | . . . Explosive 195 | . 85 110 Electromagnetic . | . . . Impact . | . . . Slashing . | . . . Piercing . | . . . Highest Corruption . | . . . Average Corruption . | . . . Corruption Purged . | . . . Corruption Blocked . | . . . Overload Shots . | . . . Overflow Damage . | . . . Projectiles . | . . . Explosions . | . . . Melee . | . . . Knockbacks . | . . . Impact . | . . . Kinetic . | . . . Secondary . | . . . Self-Inflicted Damage 30 | . . 30 Shots 1 | . . 1 Rammed 4 | . 3 1 Targets Rammed 5 | . 4 1 Kicked . | . . . Crushed 1 | . 1 . Highest Temperature 60 | . 60 15 Average Temperature 11 | . 11 10 Received Heat Transfer 337 | . 243 94 Siege Activations . | . . . Robots Corrupted . | . . . Combat Hostiles . | . . . Parts Fried . | . . . Impact Corruptions . | . . . Robots Melted . | . . . Combat Hostiles . | . . . Parts Melted . | . . . Heat Transferred . | . . . Parts Sabotaged . | . . . Parts Stolen . | . . . Parts Stripped . | . . . Power Chain Reactions . | . . . Missiles Intercepted . | . . . Alert | -11 -10 -10 ------- Run | Jun Mat Min Peak Influence 221 | . 221 128 Initial 57 | . . 57 Average 68 | . 65 88 Maximum Alert Level 1 | . 1 . Low Security (%) 98 | 100 98 100 Level 1 1 | . 1 . Level 2 . | . . . Level 3 . | . . . Level 4 . | . . . Level 5 . | . . . High Security . | . . . Max Security . | . . . Squads Dispatched 2 | . 2 . Investigation 1 | . 1 . Extermination . | . . . Reinforcement 1 | . 1 . Assault . | . . . Garrison . | . . . Intercept . | . . . Searches Triggered . | . . . Construction Impeded . | . . . Haulers Reinforced . | . . . Active Scanning Responses . | . . . Cargo Convoy Interrupts . | . . . Stealth | -11 -10 -10 --------- Run | Jun Mat Min Distress Signals . | . . . Communications Jammed . | . . . Distress Signals . | . . . Times Spotted 29 | . 17 12 Peak Tracking Total 14 | . 5 14 Tactical Retreats . | . . . Traps | -11 -10 -10 ------- Run | Jun Mat Min Traps Triggered 1 | . 1 . Indirectly . | . . . Trap Hack Attempts . | . . . Triggered . | . . . Disarmed . | . . . Reprogrammed . | . . . Reused 1 | . . 1 Traps Extracted . | . . . Installed 1 | . . 1 Triggered 1 | . . 1 Most Traps Carried 1 | . . 1 Machines | -11 -10 -10 ---------- Run | Jun Mat Min Machines Disabled . | . . . Max in Single Turn . | . . . Machines Repaired . | . . . Machines Sabotaged . | . . . Overloaded Fab Kills . | . . . Hacking | -11 -10 -10 --------- Run | Jun Mat Min Machines Accessed 7 | . 7 . Terminals 6 | . 6 . Fabricators . | . . . Repair Stations . | . . . Recycling Units 1 | . 1 . Scanalyzers . | . . . Garrison Access . | . . . Total Hacks 18 | . 18 . Successful 7 | . 7 . Failed 11 | . 11 . Catastrophic 1 | . 1 . Database Lockouts . | . . . Manual 13 | . 13 . Terminals 15 | . 15 . Fabricators . | . . . Repair Stations . | . . . Recycling Units 3 | . 3 . Scanalyzers . | . . . Garrison Access . | . . . Terminal Hacks 4 | . 4 . Branch Access Points 1 | . 1 . Terminal Index 2 | . 2 . Hauler Manifests 1 | . 1 . Fabricator Hacks . | . . . Repair Station Hacks . | . . . Recycling Unit Hacks 1 | . 1 . Retrieve Components 1 | . 1 . Scanalyzer . | . . . Garrison Access Hacks . | . . . Unauthorized Hacks 2 | . 2 . Terminals 2 | . 2 . Botnet 2 | . 2 . Fabricators . | . . . Repair Stations . | . . . Recycling Units . | . . . Scanalyzers . | . . . Garrison Access . | . . . Data Cores Recovered . | . . . Used . | . . . Hacking Detections 7 | . 7 . Full Trace Events . | . . . Feedback Events . | . . . Feedback Blocked . | . . . Robot Schematics Acquired . | . . . Robots Built . | . . . Authchips . | . . . Time . | . . . Total Robot Build Rating . | . . . Part Schematics Acquired . | . . . Parts Built . | . . . Authchips . | . . . Time . | . . . Total Part Build Rating . | . . . Parts Repaired . | . . . Time . | . . . Parts Recycled . | . . . Recycled Matter . | . . . Retrieved Matter . | . . . Retrieved Components . | . . . Parts Scanalyzed . | . . . Part Schematics Acquired . | . . . Parts Damaged . | . . . Bothacking | -11 -10 -10 ------------ Run | Jun Mat Min Used RIF Installer . | . . . Robots Hacked . | . . . Non-combat . | . . . Combat . | . . . Robot Hacks Applied . | . . . Relay Couplers Released . | . . . Fabnet Peak Effective % . | . . . Robots Rewired . | . . . Allies Hacked . | . . . Hacks Repelled . | . . . Allies | -11 -10 -10 -------- Run | Jun Mat Min Total Allies 3 | . . 3 Largest Group 3 | . . 3 Highest-Rated Group 40 | . . 40 Highest-Rated Ally 16 | . . 16 Total Orders . | . . . Ally Attacks 4 | . . 4 Total Damage 35 | . . 35 Kills . | . . . Allies Corrupted . | . . . Allies Melted . | . . . Intel | -11 -10 -10 ------- Run | Jun Mat Min Robot Analysis Total . | . . . Derelict Logs Recovered 1 | . . 1 Drone Launches . | . . . Drone Recoveries . | . . . Exploration | -11 -10 -10 ------------- Run | Jun Mat Min Turns Passed 1417 | 17 1166 234 Spaces Moved 728 | 1 575 152 Core 20 | . . 20 Treads 708 | 1 575 132 Legs . | . . . Wheels . | . . . Hover . | . . . Flight . | . . . Fastest Speed 50 | 160 160 50 Average Speed 156 | 160 160 145 Slowest Speed 160 | 160 160 160 Overloaded Moves . | . . . Propulsion Burnouts . | . . . Robots Hopped . | . . . Cave-ins Triggered . | . . . Exploration Rate (%) 38 | 1 89 26 Regions Visited 2 Branch Regions 1 Pre-discovered Areas . | . . . Known Exits Taken 1 | . 1 . Unknown Exits Taken 1 | 1 . . Scrap Searched . | . . . Spaces Dug . | . . . Terrain Destroyed 19 | . 7 12 Melee . | . . . Projectile . | . . . AOE 19 | . 7 12 Terrain Rammed . | . . . Walls Destroyed . | . . . Machines Disabled . | . . . Actions | -11 -10 -10 --------- Run | Jun Mat Min Total 909 | 15 733 161 Wait 88 | 12 76 . Move 726 | . 574 152 Hop . | . . . Pick Up 14 | . 13 1 Fast Attach . | . . . Attach 2 | . 2 . Detach 1 | . 1 . Swap 17 | 3 13 1 Drop 6 | . 4 2 Fire 49 | . 46 3 Melee . | . . . Ram 1 | . . 1 Kick . | . . . Crush 4 | . 4 . Escape Stasis . | . . . Rewire . | . . . Trap 1 | . . 1 Miscellaneous . | . . . Route ------- -11/Junkyard -10/Materials (discovered 6 exits: [*Mat x3] / *Min x2 / [*Sub]) -10/Mines History --------- Turn | Location | Event 18 | -11/Junkyard | Discovered new exit (range 0) 18 | -11/Junkyard | Entered Materials 305 | -10/Materials | Build established: Mutant 311 | -10/Materials | Discovered new exit (range 16) 590 | -10/Materials | Discovered new exit (range 9) 970 | -10/Materials | Discovered new exit (range 16) 980 | -10/Materials | Discovered new exit (range 5) 1089 | -10/Materials | Identified exit to Mines 1184 | -10/Materials | Entered Mines 1191 | -10/Mines | Learned Materials emergency access door positions 1200 | -10/Mines | Found a hidden stash of uninstalled traps 1311 | -10/Mines | Assisted by bots powering up and referring to "LRC-V3" 1394 | -10/Mines | Assembled infested the area 1407 | -10/Mines | Released all parts (3) 1408 | -10/Mines | Core integrity fell below 50% 1417 | -10/Mines | Core integrity fell below 20% 1418 | -10/Mines | Destroyed by as-97358 with Assembled F-torch Last Messages --------------- 01324_ K-01 Serf collects debris. 01363_ U-05 Engineer lays Concrete. 01372_ U-05 Engineer builds a Wall. 01394_ ALERT: Infestation in the mines, dispatching Demolisher response squad. 01401_ C-30 ARC bursts open, deploying its payload. 01401_ D-53 Grenadier unfolds itself. 01401_ Lgt. Armor Plating destroyed. 01402_ K-01 Serf collects debris. 01403_ Trooper 1a destroyed. 01403_ Trooper 1b destroyed. 01403_ K-01 Serf destroyed. 01405_ Lgt. Treads destroyed. 01405_ Assault Rifle destroyed. 01405_ Mercenary 1a destroyed. 01407_ Released Lrg. Storage Unit. 01407_ Released Ion Engine. 01407_ Released Lgt. Assault Rifle. 01416_ Slammed into as-56545. 01417_ U-05 Engineer lays Concrete. Map ----- +----------------------------------------------------+ | | | | | | | ?????????????????????????????????????????????????? | | ?????????????????????????????????????????????????? | | ?????????????????????????????????????????????????? | | ???????????????????????###???????????????????????? | | ??????????????????????## #?########?????????????? | | ??????????????????????# ## ##????????????? | | ??????????????????????# #?####???????? | | ??????????????????????# ### #??????? | | ??????????????????????## ### ???#### | | ???????????????????????## #### #?# ??## # | | ????????????????????????## ###??# #??# ### | | ?????????????????????????# ##????# #??# | | ?????????????????????????# #?????# #??## # | | ?????????????????????????# #?##### ###### # | | ?????????????????????????# #?# # #?## ## | | ?????????????????????????# #?# #### #??# ##? | | ?????????????????????????# #?# ### ##?# ##?? | | ?????????????????????????# #?# ## #### #??? | | ???????????????????####### ### #??? | | ???????????????????# aaa #??? | | ???????????????????# a%a %# ## # ##??? | | ???????????????????# ### #### ####### #???? | | ???????????????????# ???#@#??# # ###???# #??? | | ????????????????????????# #??### #???# #?? | | ????????????????????????# #????### #???# #? | | ????????????????????????# #??????# #???## #? | | ???????????????????????? #????### ###??#### ##? | | ????????????????????????###????# #?????#####?? | | ??????????????????????????????## ##??????????? | | ??????????????????????????????# #??????????? | | ??????????????????????????????# ###???????? | | ??????????????????????????????# #???????? | | ??????????????????????????????# [ #???????? | | ??????????????????????????????# =*]] #####???? | | ??????????????????????????????## !!][ %% #? | | ???????????????????????????????# !![ * ## ###??? | | ??????????????????????????????# * #??#????? | | ??????????????????????????????## # ?????? | | ???????????????????????????????### # # #???? | | ?????????????????????????????????###### #???? | | ??????????????????????????????????????? ##???? | | ???????????????????????????????????????? ###????? | | ???????????????????????????????????????? ##??????? | | ?????????????????????????????????????????#???????? | | ?????????????????????????????????????????????????? | | ?????????????????????????????????????????????????? | | ?????????????????????????????????????????????????? | +----------------------------------------------------+ Best States ------------- Heat Dissipation 25 Energy Generation 10 Energy Capacity 250 Matter Stores 300 Matter Capacity 300 Sight Range 16 Terrain Scan Density 10 Armor Coverage 150 Weapon Shielding 33 Evasion (%) 50 Recoil Reduction 2 Item Schematics ----------------- None Robot Schematics ------------------ None Fabricated ------------ Nothing Alien Tech Used ----------------- None Achievements -------------- None Challenges ------------ None Game ------ Seed LightningGuidedLoader Manual? 0 Play Time 00:12:29 Cumulative 122.0 hours Start 2024.03.31 @ 01:07:59 End 2024.03.31 @ 01:18:28 Sessions 1 Manual Loads 0 Difficulty Rogue Special Mode None Game No. 96 Rogue 96 Adventurer 0 Explorer 0 Win Type - Total 0 Types 0/0/0/0/0/0/0/0/0 Lore% 53 Gallery% 62 Achievement% 45 Wizard Run 0 Options --------- ASCII 0 Keyboard 0 Movement Vi Keybinds 0 Fullscreen 1 Font 18/SmallcapsGlow Map View 76x50 Tactical HUD 1 Map Filters NONE Filters LOW_CONTRAST(13,24,33) Steam 1 RUN: 083bf064-d1cd-4e57-b945-be690ef97a5a